[Event "GM ZIA Smirity-A 2025"]
[Site "Dhaka"]
[Date "2025.02.20"]
[Round "7.2"]
[White "Zia, Tahsin Tajwar"]
[Black "Abu Sufian, Shakil"]
[Result "1/2-1/2"]
[Annotator "RC"]
[ECO "A38"]
[WhiteElo "2323"]
[BlackElo "2224"]
[PlyCount "77"]
[EventDate "2025.02.17"]
[EventType "swiss"]
[EventCountry "BAN"]
[SourceTitle "playchess.com"]
[Source "ChessBase"]
[SourceQuality "1"]
[TimeControl "5400+30"]

1. Nf3 {[%emt 0:00:22]} c5 {[%emt 0:01:55]} 2. c4 {[%emt 0:01:59]} Nf6 {[%emt 0:00:19]} 3. Nc3 {[%emt 0:00:19]} Nc6 {[%emt 0:00:10]} 4. g3 {[%emt 0:00:11]} g6 {[%emt 0:00:09]} 5. Bg2 {[%emt 0:00:05]} Bg7 {[%emt 0:00:02]} 6. O-O {[%emt 0:00:15]} d6 {[%emt 0:01:40]} 7. a3 {[%emt 0:03:40]} O-O {[%emt 0:01:14]} 8. Rb1 {[%emt 0:00:07]} a5 {[%emt 0:06:17]} 9. d3 {[%emt 0:01:06]} Bd7 {[%emt 0:03:20]} 10. h3 {[%emt 0:10:27]} Nd4 {[%emt 0:02:50]} 11. Nxd4 {[%emt 0:03:42]} cxd4 {[%emt 0:00:05]} 12. Nb5 {[%emt 0:00:18]} Qb6 {[%emt 0:07:56]} 13. a4 {[%emt 0:06:42]} Bc6 {[%emt 0:00:30]} 14. e4 {[%emt 0:11:28]} Nd7 {[%emt 0:03:00]} 15. h4 {[%emt 0:08:18]} f5 {[%emt 0:08:15]} 16. h5 {[%emt 0:00:35]} fxe4 {[%emt 0:07:45]} 17. dxe4 {[%emt 0:02:09]} Ne5 {[%emt 0:03:00]} 18. b3 {[%emt 0:11:03]} Bd7 {[%emt 0:02:59]} 19. Bb2 {[%emt 0:04:00]} Nc6 {[%emt 0:02:40]} 20. f4 {[%emt 0:09:16]} Qc5 {[%emt 0:02:53]} 21. hxg6 {[%emt 0:03:13]} hxg6 {[%emt 0:00:05]} 22. Bf3 {[%emt 0:00:17]} d3+ {[%emt 0:10:37]} 23. Kg2 {[%emt 0:00:29]} Bxb2 {[%emt 0:00:09]} 24. Rxb2 {[%emt 0:00:01]} Nb4 {[%emt 0:00:16]} 25. Rh1 {[%emt 0:08:54]} Bxb5 {[%emt 0:01:14]} 26. axb5 {[%emt 0:02:37]} Kg7 {[%emt 0:01:29]} 27. Qa1 {[%emt 0:09:05]} e5 {[%emt 0:02:31]} 28. f5 {[%emt 0:00:28]} Rh8 {[%emt 0:11:19]} 29. Qc1 {[%emt 0:00:45]} Rxh1 {[%emt 0:00:59]} 30. Qxh1 {[%emt 0:00:05]} Nc2 {[%emt 0:07:34]} 31. f6+ {[%emt 0:00:11]} Kxf6 {[%emt 0:00:10]} 32. Qh4+ {[%emt 0:00:03]} Kg7 {[%emt 0:00:25]} 33. Qe7+ {[%emt 0:00:05]} Kh8 {[%emt 0:01:08]} 34. Rb1 {[%emt 0:01:36]} Ne3+ {[%emt 0:00:31]} 35. Kh2 {[%emt 0:00:01]} Kg8 {[%emt 0:03:06]} 36. Qe6+ {[%emt 0:00:43]} Kg7 {[%emt 0:00:01]} 37. Qe7+ {[%emt 0:00:07]} Kg8 {[%emt 0:00:09]} 38. Qe6+ {[%emt 0:00:47]} Kg7 {[%emt 0:00:01]} 39. Qe7+ {[%emt 0:00:48]} 1/2-1/2

[Event "GM ZIA Smirity-A 2025"]
[Site "Dhaka"]
[Date "2025.02.20"]
[Round "7.3"]
[White "Mohammad, Javed"]
[Black "Rahman, Syed Mahfuzur"]
[Result "1-0"]
[Annotator "NA RC"]
[ECO "D12"]
[WhiteElo "2139"]
[BlackElo "2113"]
[PlyCount "221"]
[EventDate "2025.02.17"]
[EventType "swiss"]
[EventCountry "BAN"]
[SourceTitle "playchess.com"]
[Source "ChessBase"]
[SourceQuality "1"]
[TimeControl "5400+30"]

1. d4 {[%emt 0:00:03]} d5 {[%emt 0:03:19]} 2. Nf3 {[%emt 0:00:12]} c6 {[%emt 0:00:12]} 3. c4 {[%emt 0:00:30]} e6 {[%emt 0:00:10]} 4. cxd5 {[%emt 0:02:24]} exd5 {[%emt 0:00:23]} 5. Nc3 {[%emt 0:00:23]} Bf5 {[%emt 0:00:21]} 6. e3 {[%emt 0:00:41]} Nd7 {[%emt 0:01:35]} 7. Bd3 {[%emt 0:00:09]} Bxd3 {[%emt 0:06:03]} 8. Qxd3 {[%emt 0:00:02]} Ngf6 {[%emt 0:00:04]} 9. O-O {[%emt 0:00:36]} Be7 {[%emt 0:00:36]} 10. Bd2 {[%emt 0:03:18] D12: Slav Defence: 3 Nf3 Nf6 4 e3 Bf5.} O-O {[%emt 0:00:41]} 11. Rfc1 {[%emt 0:01:21]} Re8 {[%emt 0:01:38]} 12. Be1 {[%emt 0:08:25]} Bd6 {[%emt 0:05:43]} 13. Nd2 {[%emt 0:03:10]} Qe7 {[%emt 0:01:26]} 14. h3 {[%emt 0:02:00]} h5 {[%emt 0:03:53]} 15. a3 {[%emt 0:06:08]} a5 {[%emt 0:06:46]} 16. Rc2 {[%emt 0:02:18]} a4 {[%emt 0:04:13]} 17. Nf1 {[%emt 0:11:55]} Ne4 {[%emt 0:03:48]} 18. f3 {[%emt 0:01:50]} Nxc3 {[%emt 0:01:03]} 19. Rxc3 {[%emt 0:01:21]} Nb6 {[%emt 0:03:06]} 20. Nd2 {[%emt 0:06:39]} Qg5 {[%emt 0:05:49]} 21. Bf2 {[%emt 0:14:07]} Re7 {[%emt 0:07:45]} 22. e4 {[%emt 0:06:05]} (22. b4 $11) 22... Bf4 {[%emt 0:02:19]} 23. Be3 {[%emt 0:02:08]} Bxe3+ {[%emt 0:03:38]} 24. Qxe3 {[%emt 0:00:02]} Qxe3+ {[%emt 0:02:04]} 25. Rxe3 {[%emt 0:00:03]} dxe4 {[%emt 0:05:03]} 26. fxe4 {[%emt 0:00:57]} Rd8 {[%emt 0:05:54]} 27. Nf3 {[%emt 0:03:57]} Nc4 {[%emt 0:02:07]} 28. Re2 {[%emt 0:00:21]} Nd6 {[%emt 0:12:13]} 29. Rae1 {[%emt 0:01:14]} Nb5 $11 {[%emt 0:02:34]} 30. Rd2 {[%emt 0:00:52]} Red7 {[%emt 0:05:08]} 31. Red1 {[%emt 0:00:32]} Nd6 {[%emt 0:00:31]} 32. Re2 {[%emt 0:03:20]} f5 {[%emt 0:01:24]} 33. e5 {[%emt 0:05:40]} Ne4 {[%emt 0:00:01]} 34. Nh4 {[%emt 0:01:43]} Ng3 {[%emt 0:00:52]} 35. Rf2 {[%emt 0:02:56]} Rxd4 {[%emt 0:03:54]} 36. Rxd4 {[%emt 0:00:33]} Rxd4 {[%emt 0:00:04]} 37. Nxf5 {[%emt 0:00:51]} Rd1+ {[%emt 0:01:23]} 38. Kh2 {[%emt 0:00:01]} Nf1+ {[%emt 0:00:21]} 39. Kg1 {[%emt 0:00:14]} Ng3+ {[%emt 0:00:14]} 40. Kh2 {[%emt 0:00:03]} Nf1+ {[%emt 0:00:13]} 41. Kg1 {[%emt 0:00:47]} Ne3+ {[%emt 0:00:27]} 42. Kh2 {[%emt 0:00:09]} Nxf5 43. Rxf5 {[%emt 0:00:02]} Rd2 {[%emt 0:01:33]} 44. e6 {[%emt 0:03:55]} Re2 {[%emt 0:00:15]} 45. Rxh5 {[%emt 0:01:42]} Rxe6 {[%emt 0:00:20]} 46. Rh4 {[%emt 0:02:31]} b5 {[%emt 0:00:39]} 47. Kg3 {[%emt 0:01:18]} Re2 {[%emt 0:00:15]} 48. Rb4 {[%emt 0:00:03]} Kf7 {[%emt 0:00:53]} 49. Kf3 {[%emt 0:01:35]} Rc2 {[%emt 0:00:04]} 50. g3 {[%emt 0:01:08]} Ke6 {[%emt 0:01:45]} 51. h4 {[%emt 0:00:27]} Kf6 {[%emt 0:00:38]} 52. g4 {[%emt 0:00:37]} Kg6 {[%emt 0:00:22]} 53. Kf4 {[%emt 0:00:33]} Rf2+ {[%emt 0:00:24]} 54. Kg3 {[%emt 0:00:41]} Rd2 {[%emt 0:00:41]} 55. Kf4 {[%emt 0:00:22]} Re2 {[%emt 0:00:24]} 56. h5+ {[%emt 0:01:03]} Kh6 {[%emt 0:00:07]} 57. Rd4 {[%emt 0:00:30]} Rf2+ {[%emt 0:01:02]} 58. Kg3 {[%emt 0:00:27]} Rxb2 {[%emt 0:00:39]} 59. Rd6+ {[%emt 0:00:07]} Kh7 {[%emt 0:00:03]} 60. g5 {[%emt 0:00:43]} Kg8 {[%emt 0:00:49]} 61. g6 {[%emt 0:00:50]} Kf8 {[%emt 0:00:01]} 62. Rd8+ {[%emt 0:00:19]} Ke7 {[%emt 0:00:01]} 63. h6 {[%emt 0:00:09]} gxh6 {[%emt 0:01:14]} 64. g7 {[%emt 0:00:07]} Rb3+ {[%emt 0:00:02]} 65. Kf4 {[%emt 0:01:03]} Kxd8 {[%emt 0:00:08]} 66. g8=Q+ {[%emt 0:00:06]} Kc7 {[%emt 0:00:44]} 67. Qf8 {[%emt 0:00:40]} Rd3 {[%emt 0:00:52]} 68. Ke4 {[%emt 0:00:51]} Rd5 {[%emt 0:00:07]} 69. Qxh6 {[%emt 0:00:13]} Kd7 {[%emt 0:00:50]} 70. Qf8 {[%emt 0:00:20]} Kc7 {[%emt 0:01:40]} 71. Qe7+ {[%emt 0:00:32]} Kb8 {[%emt 0:00:00]} 72. Qf7 {[%emt 0:00:31]} Rd6 {[%emt 0:00:23]} 73. Ke5 {[%emt 0:00:42]} Rd5+ {[%emt 0:00:09]} 74. Ke6 {[%emt 0:00:23]} Rd1 {[%emt 0:00:26]} 75. Qf2 {[%emt 0:00:36]} Kb7 {[%emt 0:00:25]} 76. Qf7+ {[%emt 0:00:26]} Kb8 {[%emt 0:00:11]} 77. Qf3 {[%emt 0:00:47]} Rd5 {[%emt 0:00:07]} 78. Qf7 {[%emt 0:00:56]} Rd1 {[%emt 0:00:24]} 79. Qg7 {[%emt 0:00:21]} Rd5 {[%emt 0:00:08]} 80. Qh7 {[%emt 0:01:01]} Rd8 {[%emt 0:00:56]} 81. Ke7 {[%emt 0:00:48]} Rd5 {[%emt 0:00:10]} 82. Ke8 {[%emt 0:00:34]} Kc8 {[%emt 0:01:54]} 83. Qa7 {[%emt 0:00:38]} Re5+ {[%emt 0:00:11]} 84. Kf7 {[%emt 0:00:13]} Re2 {[%emt 0:00:52]} 85. Qd4 {[%emt 0:01:02]} Kb7 {[%emt 0:00:39]} 86. Qd3 {[%emt 0:00:15]} Re1 {[%emt 0:00:22]} 87. Qd2 {[%emt 0:00:40]} Re4 {[%emt 0:00:13]} 88. Qd3 {[%emt 0:00:22]} Re1 {[%emt 0:00:19]} 89. Kf6 {[%emt 0:00:28]} Kc8 {[%emt 0:01:02]} 90. Qc3 {[%emt 0:00:20]} Rf1+ {[%emt 0:00:14]} 91. Ke6 {[%emt 0:00:03]} Kc7 {[%emt 0:00:41]} 92. Qg7+ {[%emt 0:00:35]} Kb6 {[%emt 0:00:36]} 93. Qd4+ {[%emt 0:00:07]} Kb7 {[%emt 0:00:32]} 94. Kd6 {[%emt 0:00:10]} Rf7 {[%emt 0:00:30]} 95. Qe5 {[%emt 0:00:50]} Rh7 {[%emt 0:00:26]} 96. Qg5 {[%emt 0:00:43]} Rf7 {[%emt 0:00:29]} 97. Qg6 {[%emt 0:00:20]} Rc7 {[%emt 0:00:36]} 98. Qe8 {[%emt 0:00:36]} Rc8 {[%emt 0:00:27]} 99. Qd7+ {[%emt 0:00:09]} Kb8 {[%emt 0:00:01]} 100. Qe7 {[%emt 0:00:19]} c5 {[%emt 0:01:03]} 101. Qd7 {[%emt 0:00:18]} c4 {[%emt 0:00:25]} 102. Qxb5+ {[%emt 0:00:07]} Ka7 {[%emt 0:00:06]} 103. Qxa4+ {[%emt 0:00:23]} Kb6 {[%emt 0:00:09]} 104. Qb4+ {[%emt 0:00:16]} Ka7 {[%emt 0:00:54]} 105. Kd7 {[%emt 0:00:18]} Rh8 {[%emt 0:00:46]} 106. Qa5+ {[%emt 0:00:31]} Kb7 {[%emt 0:00:10]} 107. Qd5+ {[%emt 0:00:11]} Ka6 {[%emt 0:00:06]} 108. Qxc4+ {[%emt 0:00:13]} Kb7 {[%emt 0:00:04]} 109. Qe4+ {[%emt 0:00:21]} Ka6 {[%emt 0:00:08]} 110. Kc7 {[%emt 0:00:21]} Rh5 {[%emt 0:00:23]} 111. Qa4+ {[%emt 0:00:12]} 1-0

[Event "GM ZIA Smirity-A 2025"]
[Site "Dhaka"]
[Date "2025.02.20"]
[Round "7.4"]
[White "Islam, Khandaker Aminul"]
[Black "Alam, Monjur"]
[Result "1-0"]
[Annotator "RC"]
[ECO "B07"]
[WhiteElo "2169"]
[BlackElo "1906"]
[PlyCount "37"]
[EventDate "2025.02.17"]
[EventType "swiss"]
[EventCountry "BAN"]
[SourceTitle "playchess.com"]
[Source "ChessBase"]
[SourceQuality "1"]
[TimeControl "5400+30"]

1. d4 {[%emt 0:00:16]} Nf6 {[%emt 0:00:09]} 2. Bf4 {[%emt 0:00:05]} g6 {[%emt 0:00:55]} 3. Nc3 {[%emt 0:00:23]} Bg7 {[%emt 0:00:03]} 4. e4 {[%emt 0:00:23]} d6 {[%emt 0:00:14]} 5. Qd2 {[%emt 0:00:10]} Nbd7 {[%emt 0:01:36]} 6. Nf3 {[%emt 0:01:59]} c5 {[%emt 0:02:19]} 7. d5 {[%emt 0:01:29]} O-O {[%emt 0:03:00]} 8. Bd3 {[%emt 0:02:47]} Ne8 {[%emt 0:01:16]} 9. Bh6 {[%emt 0:00:47]} Ne5 {[%emt 0:05:58]} 10. Nxe5 {[%emt 0:06:41]} dxe5 {[%emt 0:01:51]} 11. Bxg7 {[%emt 0:03:51]} Kxg7 {[%emt 0:00:30]} 12. Qe3 {[%emt 0:06:10]} Qa5 {[%emt 0:01:27]} 13. O-O {[%emt 0:01:13]} e6 {[%emt 0:06:00]} 14. f4 {[%emt 0:02:51]} exd5 {[%emt 0:02:05]} 15. Nxd5 {[%emt 0:03:00]} exf4 {[%emt 0:00:39]} 16. Qxf4 {[%emt 0:01:36]} Be6 {[%emt 0:01:56]} 17. Qe5+ {[%emt 0:00:32]} Kg8 {[%emt 0:00:06]} 18. Qf4 {[%emt 1:05:17]} Bc8 19. e5 {[%emt 0:00:30]} 1-0

[Event "GM ZIA Smirity-A 2025"]
[Site "Dhaka"]
[Date "2025.02.20"]
[Round "7.7"]
[White "Khan, Nazrana"]
[Black "Kazi Zarin, Tasnim"]
[Result "1/2-1/2"]
[Annotator "NA RC"]
[ECO "D36"]
[WhiteElo "1840"]
[BlackElo "1897"]
[PlyCount "37"]
[EventDate "2025.02.17"]
[EventType "swiss"]
[EventCountry "BAN"]
[SourceTitle "playchess.com"]
[Source "ChessBase"]
[SourceQuality "1"]
[TimeControl "5400+30"]

1. d4 {[%emt 0:00:03]} Nf6 {[%emt 0:00:17]} 2. c4 {[%emt 0:00:07]} e6 {[%emt 0:00:04]} 3. Nc3 {[%emt 0:00:13]} d5 {[%emt 0:00:05]} 4. cxd5 {[%emt 0:00:17]} exd5 {[%emt 0:00:06]} 5. Bg5 {[%emt 0:00:08]} c6 {[%emt 0:00:59]} 6. e3 {[%emt 0:00:08]} Nbd7 {[%emt 0:01:33]} 7. Bd3 {[%emt 0:00:08]} h6 {[%emt 0:00:54]} 8. Bh4 {[%emt 0:00:17]} Be7 {[%emt 0:00:12]} 9. Qc2 {[%emt 0:00:18]} O-O {[%emt 0:00:17]} 10. Nge2 {[%emt 0:00:12]} Re8 {[%emt 0:00:52]} 11. O-O {[%emt 0:00:09]} b6 {[%emt 0:02:16]} 12. f3 {[%emt 0:00:59]} c5 {[%emt 0:02:04]} 13. Rae1 {[%emt 0:04:53]} Bb7 {[%emt 0:03:04]} 14. Bf2 {[%emt 0:02:51]} Bd6 {[%emt 0:04:59]} 15. Qd2 {[%emt 0:01:34]} a6 {[%emt 0:03:18]} 16. Bg3 {[%emt 0:04:37]} Nf8 {[%emt 0:02:36]} 17. Bb1 {[%emt 0:02:54]} Ne6 {[%emt 0:08:59]} 18. Bxd6 {[%emt 0:02:46]} Qxd6 {[%emt 0:01:22]} 19. Kh1 {[%emt 0:03:54]} 1/2-1/2

[Event "GM ZIA Smirity-A 2025"]
[Site "Dhaka"]
[Date "2025.02.20"]
[Round "7.8"]
[White "Swarnavo Choudhury"]
[Black "Sajidul, Haque"]
[Result "1/2-1/2"]
[Annotator "RC"]
[ECO "B15"]
[WhiteElo "2120"]
[BlackElo "2107"]
[PlyCount "40"]
[EventDate "2025.02.17"]
[EventType "swiss"]
[EventCountry "BAN"]
[SourceTitle "playchess.com"]
[Source "ChessBase"]
[SourceQuality "1"]
[TimeControl "5400+30"]

1. e4 {[%emt 0:00:04]} c6 {[%emt 0:00:27]} 2. d4 {[%emt 0:00:06]} d5 {[%emt 0:00:04]} 3. Nc3 {[%emt 0:00:02]} dxe4 {[%emt 0:00:08]} 4. Nxe4 {[%emt 0:00:07]} Nf6 {[%emt 0:00:07]} 5. Nxf6+ {[%emt 0:00:07]} exf6 {[%emt 0:00:23]} 6. c3 {[%emt 0:00:07]} Bd6 {[%emt 0:00:04]} 7. Bd3 {[%emt 0:00:19]} O-O {[%emt 0:00:44]} 8. Qc2 {[%emt 0:00:03]} Re8+ {[%emt 0:00:07]} 9. Ne2 {[%emt 0:00:08]} h5 {[%emt 0:00:05]} 10. Be3 {[%emt 0:00:08]} Nd7 {[%emt 0:00:07]} 11. O-O-O {[%emt 0:00:13]} Nf8 {[%emt 0:00:02]} 12. Kb1 {[%emt 0:00:19]} Be6 {[%emt 0:00:51]} 13. c4 {[%emt 0:00:07]} Rc8 {[%emt 0:01:43]} 14. Nc3 {[%emt 0:02:18]} Qa5 {[%emt 0:10:52]} 15. Ne4 {[%emt 0:24:27]} Bb8 {[%emt 0:04:39]} 16. Nc5 {[%emt 0:02:12]} b5 {[%emt 0:03:35]} 17. Nxe6 {[%emt 0:01:46]} bxc4 {[%emt 0:03:19]} 18. Bxc4 {[%emt 0:18:19]} Nxe6 {[%emt 1:12:13]} 19. Bxe6 Rxe6 20. d5 Ree8 {[%emt 0:01:00]} 1/2-1/2

[Event "GM ZIA Smirity-A 2025"]
[Site "Dhaka"]
[Date "2025.02.20"]
[Round "7.9"]
[White "Anata, Choudhury"]
[Black "Noshin, Anjum"]
[Result "0-1"]
[Annotator "RC"]
[ECO "C65"]
[WhiteElo "2206"]
[BlackElo "2053"]
[PlyCount "114"]
[EventDate "2025.02.17"]
[EventType "swiss"]
[EventCountry "BAN"]
[SourceTitle "playchess.com"]
[Source "ChessBase"]
[SourceQuality "1"]
[TimeControl "5400+30"]

1. e4 {[%emt 0:00:04]} e5 {[%emt 0:00:17]} 2. Nf3 {[%emt 0:00:10]} Nc6 {[%emt 0:00:07]} 3. Bb5 {[%emt 0:00:07]} Nf6 {[%emt 0:00:22]} 4. d3 {[%emt 0:00:42]} Bc5 {[%emt 0:01:15]} 5. Ba4 {[%emt 0:00:49]} O-O {[%emt 0:00:53]} 6. O-O {[%emt 0:00:20]} d6 {[%emt 0:03:53]} 7. c3 {[%emt 0:00:12]} Bb6 {[%emt 0:01:45]} 8. Nbd2 {[%emt 0:00:23]} Ne7 {[%emt 0:00:35]} 9. Nc4 {[%emt 0:01:06]} Ng6 {[%emt 0:01:11]} 10. Bc2 {[%emt 0:00:34]} Re8 {[%emt 0:02:39]} 11. Re1 {[%emt 0:00:16]} Be6 {[%emt 0:02:44]} 12. Nxb6 {[%emt 0:18:04]} axb6 {[%emt 0:00:15]} 13. a3 {[%emt 0:08:30]} d5 {[%emt 0:03:28]} 14. Qe2 {[%emt 0:01:35]} h6 {[%emt 0:03:22]} 15. h3 {[%emt 0:00:26]} b5 {[%emt 0:01:02]} 16. Be3 {[%emt 0:01:39]} dxe4 {[%emt 0:04:36]} 17. dxe4 {[%emt 0:00:24]} Bc4 {[%emt 0:00:37]} 18. Qd2 {[%emt 0:01:34]} Qe7 {[%emt 0:02:27]} 19. Rad1 {[%emt 0:00:22]} Rad8 {[%emt 0:01:13]} 20. Qc1 {[%emt 0:00:22]} Nh5 {[%emt 0:01:21]} 21. g3 {[%emt 0:08:02]} Qf6 {[%emt 0:05:02]} 22. Kg2 {[%emt 0:00:15]} Be6 {[%emt 0:04:02]} 23. Rxd8 {[%emt 0:27:17]} Rxd8 {[%emt 0:01:16]} 24. Rd1 {[%emt 0:00:35]} Re8 {[%emt 0:06:17]} 25. Rh1 {[%emt 0:03:37]} Rd8 {[%emt 0:04:11]} 26. a4 {[%emt 0:06:47]} bxa4 {[%emt 0:05:00]} 27. Bxa4 {[%emt 0:00:11]} Rd6 {[%emt 0:07:26]} 28. c4 {[%emt 0:03:48]} Rd3 {[%emt 0:11:21]} 29. Bd1 {[%emt 0:04:00]} Qd8 {[%emt 0:06:20]} 30. Be2 {[%emt 0:00:57]} Rd7 {[%emt 0:00:53]} 31. Qc2 {[%emt 0:05:57]} Qc8 {[%emt 0:03:32]} 32. c5 {[%emt 0:01:10]} Nf6 {[%emt 0:00:42]} 33. b4 {[%emt 0:00:56]} Qa8 {[%emt 0:04:57]} 34. Nd2 {[%emt 0:02:07]} c6 {[%emt 0:05:24]} 35. Nc4 {[%emt 0:02:30]} Bxc4 {[%emt 0:03:39]} 36. Bxc4 {[%emt 0:00:13]} Qa3 {[%emt 0:00:20]} 37. Rb1 {[%emt 0:00:47]} Ne8 {[%emt 0:01:50]} 38. b5 {[%emt 0:00:45]} Kh7 {[%emt 0:01:14]} 39. bxc6 {[%emt 0:00:51]} bxc6 {[%emt 0:00:06]} 40. Rb6 {[%emt 0:00:17]} Rc7 {[%emt 0:01:49]} 41. Ra6 {[%emt 0:01:30]} Qb4 {[%emt 0:00:07]} 42. Rb6 {[%emt 0:00:33]} Qa3 {[%emt 0:00:40]} 43. Rb3 {[%emt 0:00:41]} Qa8 {[%emt 0:00:34]} 44. Qb2 {[%emt 0:00:12]} Qa4 {[%emt 0:00:28]} 45. Rb4 {[%emt 0:00:12]} Qd1 {[%emt 0:00:16]} 46. Rb7 {[%emt 0:00:43]} Rxb7 {[%emt 0:01:16]} 47. Qxb7 {[%emt 0:00:03]} Qc2 {[%emt 0:00:07]} 48. Qxf7 {[%emt 0:00:58]} Qxe4+ {[%emt 0:00:04]} 49. Kh2 {[%emt 0:00:09]} Nf6 {[%emt 0:00:11]} 50. Bf1 {[%emt 0:00:59]} Qf3 {[%emt 0:00:15]} 51. Kg1 {[%emt 0:00:26]} Qd1 {[%emt 0:00:50]} 52. Qc4 {[%emt 0:00:46]} e4 {[%emt 0:01:05]} 53. Qd4 {[%emt 0:00:17]} Qb1 {[%emt 0:00:53]} 54. Kg2 {[%emt 0:00:16]} Nd5 {[%emt 0:00:32]} 55. Bd2 {[%emt 0:00:11]} Nge7 {[%emt 0:00:39]} 56. g4 {[%emt 0:00:39]} Ng6 {[%emt 0:00:27]} 57. Be2 {[%emt 0:01:02]} Ndf4+ {[%emt 0:00:13]} 0-1

[Event "GM ZIA Smirity-A 2025"]
[Site "Dhaka"]
[Date "2025.02.20"]
[Round "7.10"]
[White "Sagor"]
[Black "Hamid, Rani"]
[Result "1-0"]
[Annotator "NA RC"]
[ECO "B42"]
[WhiteElo "2001"]
[BlackElo "1913"]
[PlyCount "122"]
[EventDate "2025.02.17"]
[EventType "swiss"]
[EventCountry "BAN"]
[SourceTitle "playchess.com"]
[Source "ChessBase"]
[SourceQuality "1"]
[TimeControl "5400+30"]

1. e4 {[%emt 0:00:03]} c5 {[%emt 0:00:08]} 2. Nf3 {[%emt 0:00:06]} e6 {[%emt 0:00:03]} 3. d4 {[%emt 0:00:11]} cxd4 {[%emt 0:00:01]} 4. Nxd4 {[%emt 0:00:13]} a6 {[%emt 0:00:02]} 5. Bd3 {[%emt 0:00:15]} Nf6 {[%emt 0:00:09]} 6. O-O {[%emt 0:00:19]} d6 {[%emt 0:00:19]} 7. c4 {[%emt 0:00:56]} Be7 {[%emt 0:00:11]} 8. Nc3 {[%emt 0:00:26]} Nc6 {[%emt 0:00:11] B42: Sicilian: Kan Variation: 5 Bd3.} 9. Nxc6 {[%emt 0:00:22]} bxc6 {[%emt 0:00:03]} 10. Qe2 {[%emt 0:01:05]} e5 {[%emt 0:00:11]} 11. h3 {[%emt 0:01:08]} O-O {[%emt 0:00:19]} 12. f4 {[%emt 0:00:22]} exf4 {[%emt 0:01:00]} 13. Bxf4 {[%emt 0:00:29]} Nd7 {[%emt 0:01:29]} 14. Rad1 {[%emt 0:01:54]} Ne5 {[%emt 0:00:32]} 15. c5 {[%emt 0:05:27]} Qc7 {[%emt 0:03:42]} 16. Bxe5 {[%emt 0:01:48]} dxe5 {[%emt 0:00:11]} 17. b4 {[%emt 0:00:21]} a5 {[%emt 0:01:25]} 18. a3 {[%emt 0:01:13]} axb4 {[%emt 0:01:34]} 19. axb4 {[%emt 0:00:02]} Be6 {[%emt 0:00:23]} 20. Bc4 {[%emt 0:00:29]} Bxc4 {[%emt 0:04:19]} 21. Qxc4 {[%emt 0:00:11]} Ra3 {[%emt 0:01:34]} 22. Rd3 {[%emt 0:01:18]} Qa7 {[%emt 0:00:48]} 23. Rfd1 {[%emt 0:07:16]} Ra1 {[%emt 0:00:24]} 24. Kh2 {[%emt 0:03:42]} Rxd1 {[%emt 0:03:01]} 25. Rxd1 {[%emt 0:00:58]} g6 {[%emt 0:02:01]} 26. Rf1 {[%emt 0:02:10]} Kg7 {[%emt 0:00:22]} 27. Nd1 {[%emt 0:01:07]} Bg5 {[%emt 0:04:00]} 28. Qc3 {[%emt 0:03:59]} f6 {[%emt 0:01:51]} 29. Nb2 {[%emt 0:02:55]} Qa2 {[%emt 0:05:37]} 30. b5 {[%emt 0:16:19]} cxb5 {[%emt 0:04:39]} 31. c6 {[%emt 0:00:52]} Qa6 {[%emt 0:01:04]} 32. Rd1 {[%emt 0:01:33]} Bf4+ {[%emt 0:04:24]} 33. g3 {[%emt 0:04:04]} b4 {[%emt 0:00:21]} 34. Qc4 {[%emt 0:01:07]} Qa3 {[%emt 0:03:56]} 35. Nd3 {[%emt 0:03:40]} Be3 {[%emt 0:01:51]} 36. Nxb4 {[%emt 0:03:41]} ({Don't play} 36. Qxb4 Qa2+ 37. Qb2 Qa4 $15) 36... Bd4 {[%emt 0:01:41]} 37. Nd3 {[%emt 0:04:24]} Qa8 {[%emt 0:05:49] [#]} 38. Rb1 {[%emt 0:03:54]} ({Better is} 38. h4 $1) 38... Rc8 {[%emt 0:02:07]} 39. Nb4 {[%emt 0:03:53]} h5 {[%emt 0:04:58]} 40. h4 {[%emt 0:03:46]} Rc7 {[%emt 0:07:19] [#]} (40... Qb8 $142 41. Rc1 Ba7) 41. Rf1 $16 {[%emt 0:03:19]} (41. Rc1 $1 $18) 41... Qa3 {[%emt 0:01:19]} 42. Nd5 {[%emt 0:07:18]} Rc8 {[%emt 0:05:27]} 43. Nxf6 {[%emt 0:04:16]} Qe3 {[%emt 0:04:18]} 44. Nxh5+ {[%emt 0:03:10]} Kh8 {[%emt 0:00:58]} 45. Nf6 {[%emt 0:01:54]} g5 {[%emt 0:03:35]} 46. hxg5 {[%emt 0:02:18]} Qxg5 {[%emt 0:00:47]} 47. Rf5 {[%emt 0:00:48]} Qd2+ {[%emt 0:01:20]} 48. Kh3 {[%emt 0:00:24]} Rf8 {[%emt 0:06:09]} 49. Qf1 {[%emt 0:02:09]} Qh6+ {[%emt 0:00:40]} 50. Nh5 {[%emt 0:00:54]} Rc8 {[%emt 0:05:30]} 51. Qf3 {[%emt 0:00:29]} Bc5 {[%emt 0:02:49]} 52. Rf6 {[%emt 0:00:54]} Qg5 {[%emt 0:00:50]} 53. Qg4 {[%emt 0:00:25]} Be3 {[%emt 0:00:35]} 54. Qxg5 {[%emt 0:00:22]} Bxg5 {[%emt 0:09:14]} 55. Re6 {[%emt 0:01:22]} Be3 {[%emt 0:00:00]} 56. Nf6 {[%emt 0:00:00]} Kg7 {[%emt 0:00:00]} 57. Nd5 {[%emt 0:00:13]} Bc5 {[%emt 0:00:00]} 58. c7 {[%emt 0:00:17]} Bd4 {[%emt 0:00:00]} 59. Kg4 {[%emt 0:00:23]} Kf7 {[%emt 0:00:00]} 60. Re7+ {[%emt 0:00:16]} Kg6 {[%emt 0:00:00]} 61. Rd7 {[%emt 0:00:18]} Re8 {[%emt 0:03:30]} 1-0

[Event "GM ZIA Smirity-A 2025"]
[Site "Dhaka"]
[Date "2025.02.20"]
[Round "7.11"]
[White "Rayan Rashid Mugdho"]
[Black "Tashriq Saihan, Shan"]
[Result "1/2-1/2"]
[Annotator "RC"]
[ECO "C56"]
[WhiteElo "1861"]
[BlackElo "1974"]
[PlyCount "58"]
[EventDate "2025.02.17"]
[EventType "swiss"]
[EventCountry "BAN"]
[SourceTitle "playchess.com"]
[Source "ChessBase"]
[SourceQuality "1"]
[TimeControl "5400+30"]

1. e4 {[%emt 0:00:12]} e5 {[%emt 0:00:01]} 2. Nf3 {[%emt 0:01:29]} Nc6 {[%emt 0:02:29]} 3. Bc4 {[%emt 0:00:19]} Nf6 {[%emt 0:00:06]} 4. d4 {[%emt 0:00:45]} exd4 {[%emt 0:01:30]} 5. e5 {[%emt 0:00:21]} d5 {[%emt 0:00:43]} 6. Bb5 {[%emt 0:00:44]} Ne4 {[%emt 0:00:07]} 7. Nxd4 {[%emt 0:00:31]} Bc5 {[%emt 0:00:09]} 8. Be3 {[%emt 0:00:57]} Bxd4 {[%emt 1:29:25]} 9. Qxd4 {[%emt 0:08:07]} O-O {[%emt 0:00:00]} 10. Bxc6 {[%emt 0:01:07]} bxc6 {[%emt 0:00:00]} 11. O-O {[%emt 0:00:39]} c5 {[%emt 0:00:00]} 12. Qd1 {[%emt 0:01:03]} d4 {[%emt 0:00:00]} 13. Bf4 {[%emt 1:20:46]} f6 {[%emt 0:02:30]} 14. Nd2 {[%emt 0:00:30]} Nxd2 {[%emt 0:00:00]} 15. Qxd2 {[%emt 0:00:00]} fxe5 {[%emt 0:00:00]} 16. Bxe5 {[%emt 0:00:00]} Bb7 {[%emt 0:00:00]} 17. f4 {[%emt 0:00:00]} Rf7 {[%emt 0:00:00]} 18. Rad1 {[%emt 0:00:00]} Qd5 {[%emt 0:00:00]} 19. a3 {[%emt 0:00:00]} Rd8 {[%emt 0:00:00]} 20. b4 {[%emt 0:00:00]} Rfd7 {[%emt 0:00:00]} 21. Rf3 {[%emt 0:00:00]} c4 {[%emt 0:00:00]} 22. Rg3 {[%emt 0:00:00]} c3 {[%emt 0:00:00]} 23. Qf2 {[%emt 0:00:00]} c5 {[%emt 0:00:00]} 24. Rg5 {[%emt 0:00:00]} h6 {[%emt 0:00:00]} 25. Rg6 {[%emt 0:00:00]} Re8 {[%emt 0:00:00]} 26. Qg3 {[%emt 0:00:00]} Rxe5 {[%emt 0:00:00]} 27. fxe5 {[%emt 0:00:00]} c4 {[%emt 0:00:00]} 28. Rd6 {[%emt 0:07:00]} Rxd6 {[%emt 0:07:30]} 29. exd6 {[%emt 0:00:30]} d3 1/2-1/2